bitfinex/quotes_SOLUSD_20240902
["timestamp","ask_amount","ask_price","bid_price","bid_amount"]
[1725236961080,0.19503,129.44,129.43,24.2207]
[1725236962563,0.19503,129.44,129.43,16.4946]
[1725236965572,0.19503,129.44,129.43,18.03960719]
[1725236965777,0.19503,129.44,129.43,16.4946]
[1725236967484,0.19503,129.44,129.43,18.03960995]
[1725236967776,0.19503,129.44,129.43,25.76570995]
[1725236970276,0.19503,129.44,129.43,24.2207]
[1725236970486,0.19503,129.44,129.43,70.75692254]
[1725236972087,0.19503,129.44,129.43,24.2207]
[1725236975180,1.17576475,129.52,129.43,24.2207]
[1725236975181,8.89666475,129.52,129.47,7.7237]
[1725236975697,7.7214,129.51,129.46,7.7243]
[1725236976197,1.17576475,129.55,129.45,19.3112]
[1725236976374,1.17576475,129.55,129.47,20.85273165]
[1725236976566,1.17576475,129.55,129.48,15.0431]
[1725236976765,7.7196,129.54,129.49,7.722]
[1725236976988,7.7196,129.54,129.48,15.0431]
[1725236977299,7.7188,129.56,129.51,7.7213]
[1725236977590,1.17576475,129.55,129.51,7.7213]
[1725236978699,7.7188,129.56,129.51,7.7213]
[1725236979369,7.7178,129.57,129.52,7.7207]
[1725236979865,1.17576475,129.6,129.5,6.2504]
[1725236980066,7.7186,129.56,129.51,7.7213]
[1725236980289,1.17576475,129.55,129.5,6.2504]
[1725236980474,1.17576475,129.58,129.5,13.9722]
[1725236980799,1.42674475,129.57,129.5,13.9722]
[1725236981097,7.7189,129.56,129.51,7.7213]
[1725236981882,1.17576475,129.55,129.51,7.7213]
[1725236982402,8.89466475,129.56,129.51,7.7213]
[1725236983592,7.7189,129.56,129.51,7.7213]
[1725236983889,1.17576475,129.55,129.51,7.7213]
[1725236984107,20.47576475,129.54,129.48,15.0431]
[1725236984399,7.7219,129.51,129.48,15.0431]
[1725236984605,7.7209,129.52,129.48,15.0431]
[1725236985094,8.89596475,129.53,129.48,22.7659]
[1725236985286,1.17576475,129.56,129.48,22.7659]
[1725236985493,0.12549,129.55,129.48,22.7659]
[1725236985698,1.17576475,129.54,129.48,22.7659]
[1725236986378,7.7196,129.54,129.49,7.7225]
[1725236986599,1.17576475,129.53,129.49,7.7225]
[1725236986800,8.89596475,129.53,129.49,7.7225]
[1725236986982,8.89596475,129.53,129.48,22.7661]
[1725236988998,1.17576475,129.53,129.48,22.7661]
[1725236989203,7.97178,129.52,129.48,15.0431]
[1725236989380,7.84629,129.52,129.48,15.0431]
[1725236989700,1.17576475,129.51,129.48,15.0431]
[1725236989890,8.89716475,129.51,129.48,15.0431]
[1725236990674,7.722,129.5,129.48,15.0431]
[1725236991705,1.17576475,129.49,129.46,6.3553]
[1725236991879,8.89846475,129.49,129.45,23.106]
[1725236992080,8.89846475,129.49,129.45,15.3812]
[1725236993207,8.89846475,129.49,129.45,16.92591538]
[1725236993909,8.89846475,129.49,129.45,24.65071538]
[1725236994110,1.17576475,129.49,129.45,24.65071538]
[1725236994284,8.89846475,129.49,129.45,24.65071538]
[1725236994602,8.89846475,129.49,129.45,23.106]
[1725236995210,8.89846475,129.49,129.45,24.65073893]
[1725236996680,0.12549,129.52,129.45,23.106]
[1725236996681,1.17576475,129.52,129.45,23.106]
[1725236996905,7.722,129.5,129.45,23.106]
[1725236997283,1.17576475,129.49,129.45,23.106]
[1725236998186,8.89846475,129.49,129.45,23.106]
[1725236998387,8.89846475,129.49,129.45,15.3812]
[1725237000080,7.7238,129.47,129.43,7.726]
[1725237000286,1.17576475,129.46,129.41,15.2592]
[1725237000512,7.97598,129.45,129.41,16.80445172]
[1725237000679,7.7242,129.47,129.42,7.7261]
[1725237001210,22.69841603,129.55,129.43,15.862]
[1725237001382,1.17576475,129.54,129.49,15.862]
[1725237001582,7.7191,129.55,129.49,15.862]
[1725237001783,1.17576475,129.58,129.49,35.1672]
[1725237001979,7.7186,129.56,129.51,7.7212]
[1725237002212,1.17576475,129.55,129.51,7.7212]
[1725237002415,8.89476475,129.55,129.51,7.7212]
[1725237003908,19.2922,129.59,129.52,9.26477572]
[1725237003909,7.7184,129.56,129.52,9.26477572]
[1725237004208,1.17576475,129.55,129.52,1.54407572]
[1725237004385,1.17576475,129.59,129.49,15.862]
[1725237004610,1.17576475,129.59,129.49,23.5844]
[1725237004611,7.7202,129.53,129.49,23.5844]
[1725237004805,1.17576475,129.57,129.49,15.862]
[1725237004999,7.7197,129.54,129.49,23.5845]
[1725237005188,1.17576475,129.53,129.49,25.12876364]
[1725237005379,1.17576475,129.53,129.5,7.7218]
[1725237005604,7.84519,129.54,129.5,7.7218]
[1725237005811,0.25098,129.53,129.5,7.7218]
[1725237006114,0.25098,129.53,129.49,15.862]
[1725237006308,7.97128,129.53,129.49,15.862]
[1725237006614,8.89656475,129.52,129.48,19.3073]
[1725237006814,1.42674475,129.51,129.48,19.3073]
[1725237007192,22.69363129,129.61,129.51,9.6]
[1725237007406,44.85836383,129.7,129.51,9.6]
[1725237007407,7.7114,129.68,129.62,7.7143]
[1725237007717,1.64516803,129.74,129.63,37.27362103]
[1725237008014,7.7106,129.7,129.63,16.4466]
[1725237008186,7.7109,129.69,129.63,16.4466]
[1725237008394,7.7109,129.69,129.63,24.1608]
[1725237009218,14.0667,129.71,129.65,7.713]
[1725237009526,7.7082,129.74,129.65,1.54251676]
[1725237009712,6.6627,129.75,129.68,7.7107]
[1725237009900,7.7083,129.73,129.65,20.82371676]
[1725237010100,30.9319,129.75,129.63,16.4466]
[1725237010325,19.2724,129.72,129.61,33.3661]
[1725237010526,7.7125,129.66,129.61,33.3661]
[1725237011109,7.7125,129.66,129.61,27.0026]
[1725237011301,0.25098,129.65,129.61,27.0026]
[1725237011512,7.7116,129.68,129.61,28.54550803]
[1725237011718,0.25098,129.67,129.62,7.7147]
[1725237012415,7.96298,129.67,129.61,27.003]
[1725237013234,7.7112,129.68,129.63,7.7142]
[1725237013408,7.7106,129.7,129.63,7.7142]
[1725237013607,27.7109,129.69,129.64,7.7136]
[1725237013937,7.7109,129.69,129.64,7.7136]
[1725237014924,7.7113,129.68,129.63,7.7142]
[1725237015799,19.2724,129.72,129.61,19.2877]
[1725237015800,7.7119,129.67,129.61,19.2877]
[1725237016003,0.12549,129.68,129.63,7.7141]
[1725237016200,0.25098,129.68,129.63,7.7141]
[1725237016428,7.96238,129.68,129.63,7.7141]
[1725237016728,7.96238,129.68,129.62,9.25739355]
[1725237016932,0.25098,129.68,129.61,27.0031]
[1725237017726,0.25098,129.68,129.62,7.7146]
[1725237018812,7.96228,129.68,129.63,7.7142]
[1725237019319,20.0,129.71,129.64,1.54249009]
[1725237019523,20.0,129.74,129.64,1.54249009]
[1725237019913,7.7108,129.69,129.64,9.25599009]
[1725237020406,19.2704,129.74,129.64,1.54249009]
[1725237020612,6.6627,129.75,129.65,40.746]
[1725237020807,7.709,129.72,129.67,7.7113]
[1725237021044,19.2651,129.77,129.65,40.746]
[1725237021213,7.7102,129.7,129.65,48.459]
[1725237022206,7.96168,129.69,129.65,40.746]
[1725237022542,0.12549,129.69,129.65,48.4589]
[1725237022831,0.12549,129.69,129.65,21.4644]
[1725237022832,7.96188,129.69,129.65,21.4644]
[1725237023038,0.12549,129.68,129.65,21.4644]
[1725237023345,7.46188,129.69,129.65,21.4644]
[1725237023826,38.533,129.76,129.65,21.4644]
[1725237023827,7.7118,129.67,129.65,23.00665698]
[1725237024142,19.2745,129.71,129.65,15.3352]
[1725237024439,45.0,129.7,129.63,1.5426755]
[1725237024626,7.7108,129.69,129.64,19.2841]
[1725237024823,7.7105,129.7,129.65,9.25543623]
[1725237025042,7.709,129.72,129.67,7.7118]
[1725237025407,7.709,129.72,129.67,9.25390211]
[1725237025734,39.01390379,129.9,129.74,22.7311]
[1725237025946,7.7,129.87,129.81,7.7034]
[1725237026610,7.7,129.87,129.82,7.7029]
[1725237027221,7.7,129.87,129.81,26.9621]
[1725237028335,7.7017,129.85,129.78,19.2632]
[1725237028637,7.7042,129.8,129.75,64.2677]
[1725237028819,7.7042,129.8,129.74,30.4382]
[1725237028820,38.4943,129.89,129.74,22.7311]
[1725237029023,19.2516,129.86,129.75,1.54118741]
[1725237029230,7.7035,129.82,129.75,1.54118741]
[1725237029546,7.7035,129.82,129.76,7.7063]
[1725237029719,7.7035,129.82,129.74,42.0003]
[1725237029925,7.7029,129.82,129.77,7.7059]
[1725237030411,0.12549,129.83,129.74,42.0003]
[1725237030412,7.82919,129.81,129.74,42.0003]
[1725237030612,7.703,129.82,129.76,7.7064]
[1725237030812,7.7012,129.85,129.78,15.9941]
[1725237031041,7.7005,129.87,129.8,6.3157]
[1725237031221,7.6994,129.88,129.83,7.7023]
[1725237031415,0.1726954,129.92,129.82,28.50031867]
[1725237031416,7.7001,129.87,129.82,28.50031867]
[1725237032048,7.7006,129.86,129.81,7.7035]
[1725237034653,7.7012,129.85,129.8,14.0197]
[1725237035649,0.12549,129.87,129.8,6.3157]
[1725237035819,0.1726954,129.92,129.81,39.0695]
[1725237036020,7.2742582,130.05,129.89,22.0496]
[1725237036248,7.2742582,130.05,129.93,7.6963]
[1725237036550,7.2742582,130.05,129.93,9.23525877]
[1725237036848,7.2742582,130.05,129.94,7.6956]
[1725237037178,7.6923,130.0,129.95,9.23391017]
[1725237037452,21.679,130.09,129.95,9.23391017]
[1725237037453,7.687,130.09,130.02,7.6906]
[1725237037646,7.687,130.09,130.03,1.53776342]
[1725237037828,19.2108,130.14,130.01,1.53775726]
[1725237037829,7.6877,130.08,130.01,1.53775726]
[1725237038025,19.2108,130.14,130.0,19.2299]
[1725237038225,7.6874,130.09,130.02,7.691]
[1725237038428,7.6862,130.11,130.03,7.69]
[1725237038632,7.6862,130.11,130.04,9.22735436]
[1725237039856,7.6862,130.11,130.03,19.2258]
[1725237040153,7.6864,130.1,130.03,19.2258]
[1725237040358,7.6874,130.09,130.03,26.9162]
[1725237040550,7.6874,130.09,130.03,19.2258]
[1725237040734,7.6888,130.06,130.0,7.6921]
[1725237041233,19.2108,130.14,129.99,19.2313]
[1725237041435,20.25098,130.13,129.99,19.2313]
[1725237041730,7.6881,130.07,130.01,7.6917]
[1725237042739,7.6881,130.07,130.02,1.53798919]
[1725237043148,45.0,130.12,130.02,9.22878919]
[1725237043428,7.6868,130.1,130.04,7.6897]
[1725237043634,27.6875,130.09,130.03,7.6904]
[1725237043952,20.0,130.11,130.04,1.53774913]
[1725237043953,7.6876,130.08,130.04,1.53774913]
[1725237044154,20.0,130.11,130.04,1.53774913]
[1725237044457,7.6864,130.1,130.05,1.53777737]
[1725237044644,7.687,130.09,130.03,7.6905]
[1725237045048,7.687,130.09,130.04,1.53756385]
[1725237045253,19.2108,130.14,130.04,1.53756385]
[1725237045451,7.6864,130.1,130.05,7.6892]
[1725237045656,7.6864,130.1,130.06,1.53743144]
[1725237046262,19.2108,130.14,130.06,1.53743144]
[1725237046471,7.687,130.09,130.05,1.5375629]
[1725237046776,7.687,130.09,130.03,1.53765297]
[1725237047461,39.2530582,130.18,130.07,7.6881]
[1725237047660,39.2530582,130.18,130.08,1.53709816]
[1725237048256,7.6852,130.12,130.08,1.53709816]
[1725237048453,19.2058,130.17,130.08,1.53709816]
[1725237048657,19.2058,130.17,130.07,1.5370722]
[1725237048859,7.6851,130.13,130.08,1.53707353]
[1725237049182,7.6852,130.12,130.07,7.6875]
[1725237049570,7.6852,130.12,130.08,1.53715251]
[1725237050261,7.6847,130.13,130.08,1.53715251]
[1725237050450,7.6847,130.13,130.08,9.22435251]
[1725237050646,20.0,130.16,130.08,1.53715251]
[1725237050647,7.6852,130.12,130.08,1.53715251]
[1725237050850,7.686,130.11,130.07,1.53722303]
[1725237051247,7.6852,130.12,130.08,1.53734594]
[1725237051472,7.6852,130.12,130.06,22.9718]
[1725237051672,7.6852,130.12,130.07,1.53713499]
[1725237052186,7.6863,130.1,130.07,1.53733605]
[1725237052373,7.6857,130.12,130.07,1.53733605]
[1725237052572,20.0,130.16,130.07,1.53733605]
[1725237052879,20.0,130.16,130.06,15.2831]
[1725237052880,0.12549,130.15,130.06,15.2831]
[1725237053054,6.1501,130.16,130.01,7.6912]
[1725237053254,7.6876,130.08,130.02,9.22882873]
[1725237053576,0.12549,130.15,130.02,1.53772873]
[1725237053775,65.25098,130.15,130.02,1.53772873]
[1725237053979,7.6869,130.09,130.04,7.6899]
[1725237054277,7.6869,130.09,130.04,1.53759082]
[1725237054472,7.6863,130.1,130.04,1.53759082]
[1725237054650,7.6873,130.09,130.05,1.53764329]
[1725237054850,7.6876,130.08,130.05,1.53764329]
[1725237055648,7.6876,130.08,130.04,1.53763954]
[1725237055852,7.6876,130.08,130.05,1.53752959]
[1725237056077,7.6871,130.09,130.05,1.53752959]
[1725237056955,39.2089,130.15,130.06,1.53752958]
[1725237057274,19.2089,130.15,130.07,1.53746427]
[1725237057575,19.2089,130.15,130.05,19.222]
[1725237057877,19.2089,130.15,130.07,7.688]
[1725237058064,19.2089,130.15,130.08,1.53712925]
[1725237058267,19.2089,130.15,130.08,1.53707536]
[1725237058850,7.6847,130.13,130.08,9.22447536]
[1725237059279,7.6847,130.13,130.09,16.4901]
[1725237059479,7.6847,130.13,130.1,1.53697197]
[1725237059660,7.6847,130.13,130.09,16.4901]
[1725237059661,20.0464582,130.18,130.09,35.7062]
[1725237060257,20.0464582,130.18,130.09,16.4901]
[1725237060451,7.6847,130.13,130.09,18.02725454]
[1725237060657,0.8421582,130.18,130.09,18.02725454]
[1725237060888,0.8421582,130.18,130.11,7.6853]
[1725237061056,0.8421582,130.18,130.12,1.53661712]
[1725237061256,0.8421582,130.18,130.13,19.2115]
[1725237061475,0.8421582,130.18,130.14,1.53652308]
[1725237062492,8.5951582,130.44,130.19,4.6039]
[1725237062830,1.65715385,130.39,130.26,19.1911]
[1725237063091,1.65715385,130.39,130.29,7.6748]
[1725237063092,7.671,130.37,130.29,7.6748]
[1725237063295,7.671,130.37,130.3,1.53459681]
[1725237063662,0.21053923,130.43,130.26,19.1911]
[1725237063663,7.6735,130.32,130.26,19.1911]
[1725237063978,8.5165582,130.31,130.24,7.6779]
[1725237064290,8.5165582,130.31,130.25,1.53517276]
[1725237064291,0.8421582,130.31,130.25,1.53517276]
[1725237064494,0.8421582,130.31,130.29,7.6749]
[1725237064675,0.8421582,130.31,130.23,1.53472231]
[1725237064871,0.8421582,130.31,130.26,7.6768]
[1725237065096,0.8421582,130.31,130.27,1.53493091]
[1725237065268,8.5161582,130.31,130.25,1.53501535]
[1725237065592,0.8421582,130.31,130.25,1.53501535]
[1725237065758,0.8421582,130.31,130.2,35.3001]
[1725237065966,7.92608,130.3,130.22,7.6789]
[1725237066158,8.5162582,130.31,130.24,7.6776]
[1725237066395,0.25098,130.3,130.23,19.1959]
[1725237066605,0.8421582,130.31,130.29,7.6751]
[1725237066890,0.8421582,130.31,130.3,1.53432797]
[1725237067205,0.8421582,130.31,130.29,26.8618]
[1725237067969,0.8421582,130.31,130.3,1.53466927]
[1725237068607,0.8421582,130.31,130.25,19.1927]
[1725237068901,0.8421582,130.31,130.21,38.397]
[1725237068902,0.8421582,130.31,130.22,1.53515754]
[1725237069119,7.6757,130.28,130.23,7.6785]
[1725237069281,7.6757,130.28,130.2,16.0998]
[1725237069282,0.8421582,130.31,130.2,16.0998]
[1725237069476,19.1867,130.3,130.18,7.6811]
[1725237069678,65.25098,130.29,130.18,1.53585309]
[1725237069879,65.25098,130.29,130.17,26.8867]
[1725237069880,19.1913,130.27,130.14,16.3897]
[1725237070104,19.1913,130.27,130.13,26.8947]
[1725237070105,7.681,130.19,130.13,26.8947]
[1725237070283,7.681,130.19,130.14,1.53642028]
[1725237070477,7.6817,130.18,130.13,19.2107]
[1725237070677,7.6817,130.18,130.08,22.5947]
[1725237070678,7.6835,130.15,130.09,26.903]
[1725237071006,19.2,130.21,130.1,1.53682195]
[1725237071007,7.6828,130.17,130.1,1.53682195]
[1725237071182,7.6829,130.16,130.09,19.2164]
[1725237071693,45.12549,130.15,130.05,19.2224]
[1725237071900,7.6858,130.11,130.06,1.53721447]
[1725237072104,19.2105,130.14,130.02,22.151]
[1725237072412,65.25098,130.13,130.03,1.53752888]
[1725237072614,0.12549,130.13,130.04,19.2246]
[1725237072922,0.12549,130.13,130.05,1.53725627]
[1725237073616,0.12549,130.13,130.06,7.6887]
[1725237073775,0.12549,130.13,130.06,1.53728349]
[1725237073977,0.12549,130.13,130.04,19.2246]
[1725237073978,0.25098,130.13,130.04,19.2246]
[1725237074178,7.6888,130.06,130.02,15.6724]
[1725237074381,7.688,130.08,130.02,15.6724]
[1725237074987,7.688,130.08,130.03,1.53770941]
[1725237075302,19.2135,130.12,130.03,1.53770941]
[1725237075303,45.12549,130.14,130.03,1.53770941]
[1725237075498,7.6871,130.09,130.03,1.53770941]
[1725237075705,7.6864,130.1,130.04,7.6897]
[1725237075883,0.12549,130.13,130.05,1.53735231]
[1725237076084,20.12549,130.14,130.02,42.5902]
[1725237076311,45.12549,130.13,130.02,15.6724]
[1725237076608,0.12549,130.12,130.03,1.537686]
[1725237076782,20.0,130.15,130.05,7.6893]
[1725237076981,20.0,130.15,130.06,1.53730864]
[1725237078108,45.0,130.14,130.05,1.53753183]
[1725237078283,45.0,130.14,130.04,19.2247]
[1725237078478,20.25098,130.13,130.02,23.3629]
[1725237078682,45.0,130.12,130.02,15.6724]
[1725237078877,0.12549,130.11,130.03,1.53782123]
[1725237079099,5.0,130.23,130.04,19.2245]
[1725237079299,44.98271553,130.21,130.05,1.53726719]
[1725237079606,39.98271553,130.21,130.05,1.53726719]
[1725237080310,19.2093,130.15,130.05,1.53726719]
[1725237080519,7.6864,130.1,130.05,1.53726719]
[1725237081704,0.25098,130.14,130.04,19.2245]
[1725237081705,7.6878,130.08,130.04,19.2245]
[1725237082013,7.6878,130.08,130.03,1.53778898]
[1725237082231,7.6882,130.07,130.03,1.53778898]
[1725237082402,7.6889,130.06,130.01,7.6916]
[1725237082589,7.6889,130.06,130.01,9.22960228]
[1725237082783,7.6895,130.05,130.0,19.2293]
[1725237082988,20.0,130.12,130.0,1.53807777]
[1725237083188,71.82289,130.11,129.88,15.66]
[1725237083408,19.2288,130.02,129.89,19.2458]
[1725237083613,7.6945,129.97,129.9,7.6978]
[1725237083922,19.2288,130.02,129.89,19.2458]
[1725237084231,7.6954,129.95,129.89,19.2458]
[1725237085219,45.0,130.01,129.89,19.2458]
[1725237085393,20.25098,130.0,129.89,19.2458]
[1725237085597,7.695,129.96,129.9,1.53933009]
[1725237085814,7.6954,129.95,129.9,1.53933009]
[1725237086124,64.233,129.99,129.88,15.66]
[1725237086304,20.12549,129.98,129.85,33.2499]
[1725237086621,45.12549,129.97,129.85,33.2499]
[1725237086809,0.12549,129.96,129.85,33.2499]
[1725237087015,0.12549,129.96,129.85,26.9529]
[1725237087521,19.233,129.99,129.92,7.697]
[1725237087522,7.6933,129.99,129.92,7.697]
[1725237087729,6.0592,130.06,129.93,1.15623987]
[1725237088229,7.6923,130.0,129.93,8.85253987]
[1725237088722,7.6929,129.99,129.94,1.53875805]
[1725237090116,7.6929,129.99,129.92,7.6965]
[1725237090326,6.0592,130.06,129.93,1.5389912]
[1725237090327,19.2252,130.04,129.93,1.5389912]
[1725237090503,45.12549,130.03,129.93,1.5389912]
[1725237090705,20.12549,130.02,129.93,1.5389912]
[1725237090926,20.12549,130.02,129.91,19.2433]
[1725237090927,45.12549,130.01,129.91,19.2433]
[1725237091109,0.12549,130.0,129.91,19.2433]
[1725237091307,0.12549,130.0,129.89,7.6988]
[1725237091630,0.12549,130.0,129.87,19.2488]
[1725237091631,7.6965,129.93,129.88,1.5391716]
[1725237091821,7.6965,129.93,129.88,1.53951818]
[1725237092002,7.697,129.92,129.88,1.53951818]
[1725237092207,7.6982,129.9,129.85,7.7006]
[1725237092409,7.6982,129.9,129.83,19.2546]
[1725237092410,7.6975,129.92,129.86,9.24006916]
[1725237093128,7.6977,129.91,129.85,7.7011]
[1725237093333,7.6977,129.91,129.86,1.53976282]
[1725237093627,7.697,129.92,129.86,1.53976282]
[1725237094443,7.6944,129.97,129.91,7.6975]
[1725237094605,7.6952,129.96,129.92,1.53925584]
[1725237094806,7.6948,129.96,129.89,19.2469]
[1725237095008,7.6948,129.96,129.9,7.6982]
[1725237095423,7.6953,129.95,129.9,7.6982]
[1725237095610,19.2285,130.02,129.91,20.78184972]
[1725237095816,7.6943,129.97,129.92,7.6969]
[1725237096033,7.6943,129.97,129.93,1.53901966]
[1725237096426,38.4413,130.07,129.93,1.53901966]
[1725237096614,19.2236,130.05,129.94,19.2396]
[1725237096824,19.2276,130.03,129.9,6.6478]
[1725237097108,19.2276,130.03,129.91,1.53901158]
[1725237097509,19.2276,130.03,129.92,1.53901154]
[1725237097756,43.4413,130.07,129.9,6.6478]
[1725237097757,19.2303,130.01,129.91,1.53903268]
[1725237098038,65.25098,130.0,129.91,1.53903268]
[1725237098331,65.25098,130.0,129.9,6.6478]
[1725237099046,65.25098,130.0,129.91,1.53924492]
[1725237099351,65.25098,130.0,129.92,34.4421]
[1725237099352,7.6924,130.0,129.92,34.4421]
[1725237099511,19.2251,130.04,129.93,1.53867186]
[1725237100132,19.2251,130.04,129.94,19.2386]
[1725237100324,7.6928,130.0,129.95,1.53868717]
[1725237101241,7.6918,130.01,129.95,1.53868717]
[1725237101414,7.691,130.03,129.95,1.53868717]
[1725237101615,57.6621,130.07,129.97,7.6938]
[1725237101944,7.6916,130.02,129.98,1.53837518]
[1725237102327,7.6918,130.01,129.96,7.6945]
[1725237102941,7.6925,130.0,129.95,7.6952]
[1725237103242,7.6932,129.99,129.95,1.53855951]
[1725237103438,7.6932,129.99,129.96,1.53871878]
[1725237103624,7.6932,129.99,129.95,1.53871982]
[1725237103936,7.6928,130.0,129.95,9.23381982]
[1725237104139,7.6928,130.0,129.96,1.5387213]
[1725237104716,45.0,130.04,129.96,1.5387213]
[1725237104717,7.6929,129.99,129.96,1.5387213]
[1725237105120,7.6929,129.99,129.95,1.53873246]
[1725237105419,7.6929,129.99,129.95,9.23373246]
[1725237106146,7.6929,129.99,129.95,1.53873246]
[1725237106325,7.6942,129.97,129.94,1.53875331]
[1725237106526,7.6942,129.97,129.92,22.8974]
[1725237108047,38.4528,130.03,129.88,38.4948]
[1725237108340,38.4643,130.0,129.89,1.53935753]
[1725237108517,7.6965,129.93,129.89,1.53935753]
[1725237108721,7.6965,129.93,129.89,9.23805753]
[1725237109740,7.6965,129.93,129.89,1.53935753]
[1725237109940,7.6965,129.93,129.88,7.6992]
[1725237110445,7.6965,129.93,129.89,1.53930595]
[1725237110953,7.6955,129.95,129.91,7.6975]
[1725237111122,7.696,129.94,129.9,9.2375058]
[1725237111322,7.696,129.94,129.9,1.5393058]
[1725237112043,7.6965,129.93,129.89,19.2464]
[1725237113143,7.6965,129.93,129.89,26.945]
[1725237113729,7.6965,129.93,129.89,19.2464]
[1725237113942,38.4727,129.97,129.88,1.53933219]
[1725237114128,38.4727,129.97,129.87,15.7813]
[1725237114129,7.6989,129.89,129.87,15.7813]
[1725237114329,44.8898,129.97,129.87,15.7813]
[1725237114330,7.6994,129.88,129.87,15.7813]
[1725237114737,7.6994,129.88,129.83,26.957]
[1725237115242,7.6994,129.88,129.84,7.7016]
[1725237115449,7.7,129.87,129.83,26.9573]
[1725237115825,7.6995,129.88,129.84,7.7017]
[1725237116137,19.2437,129.92,129.85,1.53985873]
[1725237116138,7.6989,129.89,129.85,1.53985873]
[1725237116445,7.6989,129.89,129.82,21.5333]
[1725237116446,7.6974,129.92,129.87,7.6998]
[1725237116650,7.6974,129.92,129.88,1.53945935]
[1725237116953,38.4643,130.0,129.88,1.53945935]
[1725237116954,7.6959,129.94,129.89,7.6983]
[1725237117134,7.6965,129.93,129.9,1.539327]
[1725237117328,7.6965,129.93,129.89,7.6983]
[1725237117650,7.6965,129.93,129.88,26.9471]
[1725237118849,7.6965,129.93,129.89,9.23804771]
[1725237119155,7.6965,129.93,129.88,26.947]
[1725237119528,0.12549,129.94,129.85,7.7008]
[1725237119735,7.6982,129.9,129.85,7.7008]
[1725237120032,7.6982,129.9,129.86,7.7005]
[1725237120229,7.6982,129.9,129.87,1.53967184]
[1725237120451,7.6982,129.9,129.85,7.7011]
[1725237120746,7.7006,129.86,129.82,21.5333]
[1725237121251,19.2494,129.88,129.82,15.3073]
[1725237121426,0.25098,129.87,129.82,15.3073]
[1725237121739,7.7012,129.85,129.82,15.3073]
[1725237122147,7.7004,129.87,129.83,1.54033762]
[1725237122333,19.2447,129.91,129.81,7.7032]
[1725237122334,7.701,129.86,129.81,7.7032]
[1725237122536,19.2447,129.91,129.79,19.2609]
[1725237122729,65.25098,129.9,129.79,19.2609]
[1725237122927,7.7013,129.85,129.81,7.7034]
[1725237123138,7.7005,129.87,129.82,1.54031314]
[1725237123557,7.7005,129.87,129.82,9.24321314]
[1725237123755,65.25098,129.9,129.82,20.79721314]
[1725237124053,53.9593,129.93,129.82,20.79721314]
[1725237124054,38.4851,129.93,129.82,20.79721314]
[1725237124352,19.2459,129.9,129.82,20.79721314]
[1725237124530,19.2459,129.9,129.82,28.50011314]
[1725237124730,7.7,129.87,129.82,28.50011314]
[1725237125460,7.7006,129.86,129.82,26.9598]
[1725237125635,7.7006,129.86,129.83,1.54023084]
[1725237125833,7.7001,129.87,129.83,9.24243084]
[1725237126136,7.7001,129.87,129.82,19.2569]
[1725237126137,7.7007,129.86,129.82,19.2569]
[1725237126353,7.7012,129.85,129.81,7.7034]
[1725237126530,7.7017,129.84,129.79,26.9659]
[1725237126934,65.0,129.92,129.8,1.54046224]
[1725237127130,7.7007,129.86,129.81,19.258]
[1725237127459,7.7007,129.86,129.82,1.54024308]
[1725237128462,7.7,129.87,129.82,9.24304308]
[1725237128675,7.6969,129.93,129.87,7.6999]
[1725237128864,6.3219,129.96,129.87,7.6999]
[1725237128865,7.6975,129.92,129.87,7.6999]
[1725237129182,19.2391,129.95,129.85,19.2523]
[1725237129380,8.35592193,129.96,129.8,38.5206]
[1725237129555,7.7001,129.87,129.82,26.9597]
[1725237129950,7.7001,129.87,129.83,1.54020966]
[1725237130178,7.7001,129.87,129.82,26.9597]
[1725237130360,7.7007,129.86,129.82,19.2568]
[1725237130965,7.7007,129.86,129.83,1.54036656]